lending/lending_fUSD_20250917
["ID","MTS","AMOUNT","RATE_DAILY","PERIOD"]
[385864743,1758069045832,-176.16,0.00031548,2]
[385864744,1758069045841,-506.1073969,0.00031576,2]
[385864745,1758069045851,-500.0,0.00031576,2]
[385864746,1758069045860,-854.0,0.00031576,2]
[385864747,1758069045869,-500.0,0.00031576,2]
[385864748,1758069045879,-500.0,0.00031576,2]
[385864749,1758069045888,-500.0,0.00031576,2]
[385864750,1758069045897,-538.0,0.00031576,2]
[385864751,1758069045906,-500.0,0.00031576,2]
[385864752,1758069045915,-1095.68322074,0.00031583,2]
[385864753,1758069045926,-162.22,0.00031675,2]
[385864754,1758069045936,-375.16,0.00031714,30]
[385864755,1758069045945,-188.96,0.00031714,30]
[385864756,1758069045954,-150.0,0.00031737,2]
[385864757,1758069045963,-813.0,0.00031754,2]
[385864758,1758069045972,-1191.822,0.00031754,2]
[385864759,1758069045981,-898.0,0.00031754,2]
[385864760,1758069045991,-4225.0,0.00031754,2]
[385864761,1758069046000,-755.0,0.00031754,2]
[385864762,1758069046009,-2039.0,0.00031754,2]
[385864763,1758069046019,-1260.0,0.00031754,2]
[385864764,1758069046029,-3390.0,0.00031754,2]
[385864765,1758069046039,-151.0,0.00031755,2]
[385864766,1758069046049,-151.0,0.00031755,2]
[385864767,1758069046059,-151.0,0.00031755,2]
[385864768,1758069046069,-151.0,0.00031755,2]
[385864769,1758069046078,-174.99,0.00031829,2]
[385864771,1758069046087,-500.0,0.0003185,2]
[385864773,1758069046096,-854.0,0.0003185,2]
[385864775,1758069046107,-500.0,0.0003185,2]
[385864777,1758069046116,-500.0,0.0003185,2]
[385864779,1758069046126,-500.0,0.0003185,2]
[385864781,1758069046135,-538.0,0.0003185,2]
[385864783,1758069046146,-500.0,0.0003185,2]
[385864785,1758069046155,-150.0,0.00031867,2]
[385864787,1758069046164,-150.0,0.00031867,2]
[385864789,1758069046173,-150.0,0.00031867,2]
[385864791,1758069046182,-150.0,0.00031867,2]
[385864793,1758069046191,-150.0,0.00031867,2]
[385864795,1758069046200,-150.0,0.00031867,2]
[385864797,1758069046209,-435.0,0.0003193,2]
[385864799,1758069046218,-500.0,0.00032124,2]
[385864801,1758069046227,-854.0,0.00032124,2]
[385864803,1758069046236,-500.0,0.00032124,2]
[385864805,1758069046247,-500.0,0.00032124,2]
[385864807,1758069046256,-500.0,0.00032124,2]
[385864809,1758069046265,-538.0,0.00032124,2]
[385864811,1758069046275,-500.0,0.00032124,2]
[385864813,1758069046284,-152.8277897,0.00032268,7]
[385864815,1758069046294,-151.0,0.00032268,7]
[385864817,1758069046303,-152.0,0.00032268,7]
[385864819,1758069046312,-151.0,0.00032268,7]
[385864821,1758069046323,-152.0,0.00032268,7]
[385864823,1758069046332,-151.0,0.00032268,7]
[385864826,1758069046341,-152.0,0.00032268,7]
[385864828,1758069046351,-151.0,0.00032268,7]
[385864830,1758069046364,-152.0,0.00032268,7]
[385864832,1758069046373,-151.0,0.00032268,7]
[385864834,1758069046383,-548.0,0.00032268,7]
[385864836,1758069046392,-152.0,0.00032268,7]
[385864838,1758069046401,-151.0,0.00032268,7]
[385864840,1758069046410,-548.0,0.00032268,7]
[385864842,1758069046420,-152.0,0.00032268,7]
[385864844,1758069046430,-548.0,0.00032268,7]
[385864846,1758069046439,-151.0,0.00032268,7]
[385864848,1758069046448,-152.0,0.00032268,7]
[385864850,1758069046458,-548.0,0.00032268,7]
[385864852,1758069046469,-151.0,0.00032268,7]
[385864854,1758069046478,-152.0,0.00032268,7]
[385864856,1758069046487,-548.0,0.00032268,7]
[385864858,1758069046497,-151.0,0.00032268,7]
[385864860,1758069046506,-152.0,0.00032268,7]
[385864862,1758069046515,-548.0,0.00032268,7]
[385864864,1758069046524,-165.87903939,0.00032268,7]
[385864866,1758069046533,-152.0,0.00032268,7]
[385864868,1758069046543,-548.0,0.00032268,7]
[385864870,1758069046552,-152.0,0.00032268,7]
[385864872,1758069046562,-553.00746009,0.00032268,7]
[385864874,1758069046571,-152.0,0.00032268,7]
[385864876,1758069046581,-152.0,0.00032268,7]
[385864878,1758069046591,-152.0,0.00032268,7]
[385864880,1758069046600,-288.59400066,0.00032268,7]
[385864882,1758069046610,-154.0,0.00032268,7]
[385864884,1758069046619,-155.0,0.00032268,7]
[385864886,1758069046629,-155.0,0.00032268,7]
[385864888,1758069046639,-151.0,0.00032303,2]
[385864890,1758069046649,-151.0,0.00032303,2]
[385864891,1758069046658,-151.0,0.00032303,2]
[385864892,1758069046668,-151.0,0.00032303,2]
[385864893,1758069046682,-420.5,0.00032308,30]
[385864894,1758069046691,-500.0,0.00032398,2]
[385864895,1758069046700,-854.0,0.00032398,2]
[385864896,1758069046709,-438.67162141,0.00032398,2]
[385864897,1758069046718,-500.0,0.00032398,2]
[385864898,1758069046727,-500.0,0.00032398,2]
[385864899,1758069046736,-538.0,0.00032398,2]
[385864900,1758069046747,-500.0,0.00032398,2]
[385864901,1758069046757,-3991.2728084,0.00032433,2]
[385864903,1758069046767,-2361.1378836,0.00032433,2]
[385864905,1758069046776,-10581.8858464,0.00032433,2]
[385864907,1758069046785,-29848.93,0.000325,7]
[385864909,1758069046795,-169.08047727,0.00032505,15]
[385864911,1758069046804,-4000.0,0.00032512,4]
[385864913,1758069046813,-359.76179104,0.00032574,2]
[385864915,1758069046822,-287.61899177,0.00032574,2]
[385864917,1758069046831,-1539.91122784,0.00032652,2]
[385864919,1758069046840,-490.60833024,0.00032656,2]
[385864921,1758069046850,-1621.26504244,0.00032665,2]
[385864923,1758069046859,-586.17123872,0.00032672,2]
[385864925,1758069046868,-854.0,0.00032672,2]
[385864927,1758069046876,-500.0,0.00032672,2]
[385864929,1758069046885,-500.0,0.00032672,2]
[385864931,1758069046895,-538.0,0.00032672,2]
[385864933,1758069046904,-582.99,0.00032672,2]
[385864935,1758069046913,-500.0,0.00032672,12]
[385864937,1758069046922,-389.00242953,0.00032672,12]
[385864939,1758069046932,-500.0,0.00032825,120]
[385864941,1758069046941,-151.0,0.00032851,2]
[385864943,1758069046950,-151.0,0.00032851,2]
[385864945,1758069046960,-280.43338726,0.00032851,2]
[385864947,1758069046969,-210.6906711,0.00032851,2]
[385864949,1758069046979,-1000.0,0.00032876,7]
[385864951,1758069046987,-1111.74,0.00032876,120]
[385864953,1758069046996,-500.0,0.00032881,12]
[385864955,1758069047006,-500.0,0.00032881,12]
[385864957,1758069047016,-500.0,0.00032881,12]
[385864959,1758069047025,-500.0,0.00032881,12]
[385864961,1758069047034,-500.0,0.00032881,12]
[385864963,1758069047043,-500.0,0.00032881,12]
[385864965,1758069047052,-500.0,0.00032881,12]
[385864967,1758069047061,-500.0,0.00032881,12]
[385864969,1758069047071,-3897.62,0.000329,14]
[385864971,1758069047081,-1095.68322074,0.00032925,2]
[385864973,1758069047089,-854.0,0.00032946,2]
[385864975,1758069047099,-500.0,0.00032946,2]
[385864977,1758069047108,-500.0,0.00032946,2]
[385864979,1758069047117,-538.0,0.00032946,2]
[385864981,1758069047126,-160.0,0.00033,30]
[385864983,1758069047136,-591.28,0.00033,14]
[385864985,1758069047148,-159.0,0.00033,14]
[385864987,1758069047156,-156.0,0.00033,14]
[385864989,1758069047166,-4630.84487913,0.00033,2]
[385864991,1758069047175,-7000.0,0.00033008,2]
[385864993,1758069047184,-298.62,0.00033062,2]
[385864995,1758069047194,-150.0,0.00033107,2]
[385864997,1758069047205,-649.0,0.00033112,2]
[385864999,1758069047214,-426.0,0.0003312,2]
[385865001,1758069047224,-854.0,0.0003322,2]
[385865003,1758069047233,-500.0,0.0003322,2]
[385865005,1758069047243,-500.0,0.0003322,2]
[385865007,1758069047253,-538.0,0.0003322,2]
[385865010,1758069047262,-890.5733409,0.00033246,2]
[385865012,1758069047272,-526.8410741,0.00033246,2]
[385865014,1758069047282,-2361.1378835,0.00033246,2]
[385865016,1758069047291,-605.81796168,0.0003327,2]
[385865018,1758069047301,-700.0,0.0003327,2]
[385865020,1758069047311,-513.0,0.000333,2]
[385865022,1758069047321,-209.33659526,0.00033399,2]
[385865024,1758069047331,-151.0,0.00033399,2]
[385865026,1758069047340,-1000.0,0.00033424,7]
[385865028,1758069047350,-854.0,0.00033494,2]
[385865030,1758069047359,-500.0,0.00033494,2]
[385865032,1758069047369,-500.0,0.00033494,2]
[385865034,1758069047379,-538.0,0.00033494,2]
[385865036,1758069047388,-375.16,0.00033498,30]
[385865038,1758069047398,-188.96,0.00033498,30]
[385865040,1758069047407,-4000.0,0.00033582,4]
[385865042,1758069047417,-155.0,0.000336,120]
[385865044,1758069047426,-29848.93,0.000336,14]
[385865046,1758069047436,-3897.62,0.000337,14]
[385865048,1758069047446,-1418.95208592,0.00033723,2]
[385865050,1758069047456,-150.0,0.0003374,7]
[385865052,1758069047466,-169.955,0.0003374,7]
[385865054,1758069047476,-150.0,0.0003374,7]
[385865056,1758069047485,-854.0,0.00033768,2]
[385865058,1758069047495,-425.0,0.00033768,2]
[385865060,1758069047505,-629.98972861,0.00033768,2]
[385865062,1758069047515,-538.0,0.00033768,2]
[385865064,1758069047525,-1539.91122784,0.00033776,2]
[385865066,1758069047534,-490.60833024,0.00033778,2]
[385865069,1758069047543,-29999.99,0.00033844,2]
[385865071,1758069047553,-2687.84,0.00033844,2]
[385865073,1758069047562,-152.0,0.0003386,5]
[385865075,1758069047572,-373.07297731,0.00033943,2]
[385865077,1758069047584,-298.26089446,0.00033943,2]
[385865080,1758069047600,-721.12765535,0.00033945,2]
[385865082,1758069047609,-151.0,0.00033947,2]
[385865084,1758069047619,-1000.0,0.00033972,7]
[385865086,1758069047628,-169.08047727,0.00033988,15]
[385865088,1758069047638,-2000.0,0.00034,2]
[385865090,1758069047647,-16980.98621757,0.00034,2]
[385865092,1758069047658,-611.5527599,0.00034,5]
[385865094,1758069047668,-2623.48988961,0.00034,5]
[385865096,1758069047682,-854.0,0.00034042,2]
[385865098,1758069047691,-538.0,0.00034042,2]
[385865100,1758069047701,-1095.68322074,0.00034267,2]
[385865102,1758069047711,-416.0,0.000343,2]
[385865104,1758069047720,-184.29,0.00034312,60]
[385865106,1758069047730,-854.0,0.00034316,2]
[385865108,1758069047739,-538.0,0.00034316,2]
[385865110,1758069047749,-343.64,0.00034369,2]
[385865112,1758069047759,-1000.0,0.00034392,2]
[385865114,1758069047768,-184.29,0.00034412,60]
[385865116,1758069047779,-500.0,0.00034437,120]
[385865118,1758069047790,-150.0,0.00034477,2]
[385865120,1758069047799,-151.0,0.00034495,2]
[385865122,1758069047808,-3897.62,0.000345,14]
[385865124,1758069047818,-2071.17759145,0.000345,14]
[385865126,1758069047828,-184.29,0.00034512,60]
[385865128,1758069047838,-1000.0,0.0003452,7]
[385865130,1758069047848,-159.0,0.00034521,30]
[385865132,1758069047859,-156.0,0.00034521,30]
[385865134,1758069047868,-1400.0,0.00034534,7]
[385865135,1758069047878,-168.34,0.00034534,2]
[385865137,1758069047887,-14822.6545837,0.00034535,7]
[385865139,1758069047896,-125764.100151,0.00034535,7]
[385865141,1758069047906,-162.22,0.00034554,2]
[385865142,1758069047916,-854.0,0.0003459,2]
[385865144,1758069047925,-538.0,0.0003459,2]
[385865146,1758069047935,-1054.00008823,0.000346,5]
[385865148,1758069047944,-184.29,0.00034612,60]
[385865150,1758069047954,-160.40177069,0.00034642,7]
[385865152,1758069047963,-4000.0,0.00034651,4]
[385865153,1758069047972,-1000.0,0.00034688,2]
[385865155,1758069047982,-2157.9,0.000347,7]
[385865157,1758069047992,-29848.93,0.000347,14]
[385865159,1758069048001,-184.29,0.00034712,60]
[385865161,1758069048011,-813.0,0.00034754,2]
[385865163,1758069048020,-1178.0,0.00034754,2]
[385865164,1758069048030,-898.0,0.00034754,2]
[385865166,1758069048040,-4225.0,0.00034754,2]
[385865168,1758069048049,-755.0,0.00034754,2]
[385865170,1758069048059,-2039.0,0.00034754,2]
[385865172,1758069048069,-1260.0,0.00034754,2]
[385865173,1758069048078,-3390.0,0.00034754,2]
[385865175,1758069048088,-151.0,0.00034754,7]
[385865177,1758069048098,-151.609541,0.00034754,7]
[385865179,1758069048108,-151.0,0.00034754,7]
[385865181,1758069048117,-151.0,0.00034754,7]
[385865183,1758069048127,-151.0,0.00034754,7]
[385865185,1758069048136,-151.32254,0.00034754,7]
[385865186,1758069048146,-151.0,0.00034754,7]
[385865188,1758069048156,-151.0,0.00034754,7]
[385865190,1758069048166,-151.0,0.00034754,7]
[385865192,1758069048176,-151.0,0.00034754,7]
[385865194,1758069048185,-156.690252,0.00034754,7]
[385865196,1758069048195,-196.94905,0.00034754,7]
[385865197,1758069048205,-151.0,0.00034754,7]
[385865198,1758069048215,-151.0,0.00034754,7]
[385865199,1758069048225,-151.0,0.00034754,7]
[385865200,1758069048235,-158.043913,0.00034754,7]
[385865201,1758069048244,-151.0,0.00034754,7]
[385865202,1758069048254,-151.928168,0.00034754,7]
[385865203,1758069048264,-151.0,0.00034754,7]
[385865204,1758069048274,-1000.0,0.00034761,2]
[385865205,1758069048284,-408.93,0.00034769,2]
[385865206,1758069048294,-150.0,0.00034769,2]
[385865207,1758069048304,-150.0,0.00034769,2]
[385865208,1758069048314,-307.6,0.00034769,2]
[385865209,1758069048324,-300.0,0.00034769,2]
[385865210,1758069048334,-411.1,0.00034769,2]
[385865211,1758069048344,-303.44,0.00034769,2]
[385865212,1758069048353,-411.1,0.00034769,2]
[385865213,1758069048363,-150.0,0.00034769,2]
[385865214,1758069048372,-150.0,0.00034769,2]
[385865215,1758069048382,-411.1,0.00034769,2]
[385865216,1758069048392,-342.64,0.00034769,2]
[385865217,1758069048402,-332.18,0.00034769,2]
[385865218,1758069048412,-150.0,0.00034769,2]
[385865219,1758069048422,-2384.66,0.00034769,2]
[385865220,1758069048432,-411.1,0.00034769,2]
[385865221,1758069048441,-153.75398,0.00034791,7]
[385865222,1758069048451,-152.922855,0.00034791,7]
[385865223,1758069048461,-184.376574,0.00034791,7]
[385865224,1758069048471,-151.0,0.00034791,7]
[385865225,1758069048481,-151.0,0.00034791,7]
[385865226,1758069048491,-151.0,0.00034791,7]
[385865227,1758069048501,-151.0,0.00034791,7]
[385865228,1758069048511,-151.0,0.00034791,7]
[385865229,1758069048521,-800.0,0.00034791,13]
[385865230,1758069048531,-800.0,0.00034791,13]
[385865231,1758069048540,-800.0,0.00034791,13]
[385865232,1758069048550,-800.0,0.00034791,13]
[385865233,1758069048561,-800.0,0.00034791,13]
[385865234,1758069048571,-800.0,0.00034791,13]
[385865235,1758069048581,-800.0,0.00034791,13]
[385865236,1758069048590,-800.0,0.00034791,13]
[385865237,1758069048600,-800.0,0.00034791,13]
[385865238,1758069048612,-800.0,0.00034791,13]
[385865239,1758069048624,-800.0,0.00034791,13]
[385865240,1758069048634,-800.0,0.00034791,13]
[385865241,1758069048645,-800.0,0.00034791,13]
[385865242,1758069048655,-800.0,0.00034791,13]
[385865243,1758069048666,-800.0,0.00034791,13]
[385865244,1758069048682,-800.0,0.00034791,13]
[385865245,1758069048693,-800.0,0.00034791,13]
[385865246,1758069048703,-800.0,0.00034791,13]
[385865247,1758069048714,-800.0,0.00034791,13]
[385865248,1758069048724,-800.0,0.00034791,13]
[385865249,1758069048734,-800.0,0.00034791,13]
[385865250,1758069048744,-800.0,0.00034791,13]
[385865251,1758069048756,-800.0,0.00034791,13]
[385865252,1758069048766,-206.0,0.00034791,13]
[385865253,1758069048776,-200.0,0.00034791,2]
[385865254,1758069048786,-200.0,0.00034791,2]
[385865255,1758069048796,-200.0,0.00034791,2]
[385865256,1758069048807,-200.0,0.00034791,2]
[385865257,1758069048816,-200.0,0.00034791,2]
[385865258,1758069048826,-200.0,0.00034791,2]
[385865259,1758069048836,-200.0,0.00034791,2]
[385865260,1758069048846,-200.0,0.00034791,2]
[385865261,1758069048855,-200.0,0.00034791,2]
[385865262,1758069048866,-200.0,0.00034791,2]
[385865263,1758069048875,-200.0,0.00034791,2]
[385865264,1758069048885,-200.0,0.00034791,2]
[385865265,1758069048895,-200.0,0.00034791,2]
[385865266,1758069048905,-200.0,0.00034791,2]
[385865267,1758069048916,-200.0,0.00034791,2]
[385865268,1758069048925,-200.0,0.00034791,2]
[385865269,1758069048935,-200.0,0.00034791,2]
[385865270,1758069048945,-200.0,0.00034791,2]
[385865271,1758069048955,-200.0,0.00034791,2]
[385865272,1758069048965,-200.0,0.00034791,2]
[385865273,1758069048975,-200.0,0.00034791,2]
[385865274,1758069048985,-200.0,0.00034791,2]
[385865275,1758069048996,-200.0,0.00034791,2]
[385865276,1758069049007,-200.0,0.00034791,2]
[385865277,1758069049017,-200.0,0.00034791,2]
[385865278,1758069049028,-200.0,0.00034791,2]
[385865279,1758069049038,-200.0,0.00034791,2]
[385865280,1758069049048,-1111.74,0.00034794,120]
[385865281,1758069049058,-184.29,0.00034812,60]
[385865282,1758069049068,-5228.91108625,0.0003485,60]
[385865283,1758069049079,-854.0,0.00034864,2]
[385865284,1758069049089,-538.0,0.00034864,2]
[385865285,1758069049099,-150.0,0.00034867,2]
[385865286,1758069049109,-79293.60194167,0.000349,2]
[385865287,1758069049118,-490.60833024,0.000349,2]
[385865288,1758069049128,-1539.91122784,0.000349,2]
[385865289,1758069049138,-184.29,0.00034912,60]
[385865290,1758069049148,-1000.0,0.00034943,2]
[385865291,1758069049157,-150.0,0.00034973,5]
[385865292,1758069049168,-168.0,0.00035,2]
[385865293,1758069049177,-280.0,0.00035,10]
[385865294,1758069049187,-1097.0,0.00035,2]
[385865295,1758069049197,-151.0,0.00035,7]
[385865296,1758069049207,-152.419878,0.00035,7]
[385865297,1758069049216,-152.800991,0.00035,7]
[385865298,1758069049225,-2529983.13372467,0.00035,4]
[385865299,1758069050033,-958.87840655,0.00035,4]
[385865300,1758069050631,-213.1401216,0.00026053,2]
[385865301,1758069050641,-151.0,0.0003058,7]
[385865302,1758069050650,-244.64464509,0.0003058,7]
[385865303,1758069050661,-136.90840891,0.0003058,7]
[385865304,1758069050674,-4171.0,0.00031754,2]
[385865305,1758069050685,-22029.51244662,0.00035,4]
[385865306,1758069053337,-4470.26136264,0.00035,4]
[385865307,1758069053348,-63607.48606108,0.00035,4]
[385865308,1758069054104,-151.0,0.0003058,7]
[385865309,1758069054114,-328.75,0.0003058,7]
[385865310,1758069054129,-52.803054,0.0003058,7]
[385865311,1758069054139,-295.029778,0.0003058,7]
[385865312,1758069054148,-381.553054,0.0003058,7]
[385865313,1758069054158,-4171.0,0.00034754,2]
[385865314,1758069054167,-22812.3083573,0.00035,4]
[385865315,1758069054191,-157.49449622,0.0003,2]
[385865316,1758069054200,-5641.42972746,0.00035,4]
[385865317,1758069054212,-26482.20344697,0.00035,4]
[385865318,1758069054810,-500.0,0.00027396,2]
[385865319,1758069054819,-500.0,0.00027396,2]
[385865320,1758069054829,-500.0,0.00027396,2]
[385865321,1758069054838,-500.0,0.00027396,2]
[385865322,1758069054848,-500.0,0.00027396,2]
[385865323,1758069054857,-21.0354325,0.0003012,2]
[385865324,1758069054870,-780.18436357,0.0003012,2]
[385865325,1758069055003,-322.76789311,0.0003012,2]
[385865326,1758069055012,-381.553054,0.0003058,7]
[385865327,1758069055022,-726.0,0.00031754,2]
[385865328,1758069055031,-726.0,0.00034754,2]
[385865329,1758069055041,-174.89,0.00034769,2]
[385865330,1758069055050,-1123.98768918,0.0003499,2]
[385865331,1758069055060,-1123.98768918,0.0003499,2]
[385865332,1758069055070,-11348.27471621,0.00035,4]
[385865333,1758069055081,-59996.79467197,0.00035,4]
[385865334,1758069055093,-11235.09518883,0.00035,4]
[385865343,1758069679587,195.45,0.00015737,2]
[385865344,1758069679799,115.40082415,0.00016565,2]
[385865345,1758069679822,80.04917585,0.00016565,2]
[385865346,1758069680008,195.45,0.00017394,2]
[385865347,1758069680234,195.45,0.00018222,2]
[385865348,1758069680449,195.45,0.0001905,2]
[385865350,1758069881475,250.0,0.00015,2]
[385865351,1758069882578,300.0,0.00017,2]
[385865360,1758070231701,-195.45,0.00019878,2]
[385865361,1758070231711,-131.4387711,0.00020707,2]
[385865362,1758070231722,-64.0112289,0.00020707,2]
[385865363,1758070231732,-195.45,0.00021535,2]
[385865364,1758070231741,-72.42311642,0.00022363,2]
[385865365,1758070231857,-123.02688358,0.00022363,2]
[385865366,1758070231867,-150.0,0.00022449,7]
[385865367,1758070231876,-109.44652434,0.00023191,2]
[385865368,1758070231888,-86.00347566,0.00023191,2]
[385865369,1758070231897,-195.45,0.0002402,2]
[385865370,1758070231906,-151.3,0.000248,2]
[385865371,1758070231916,-195.45,0.00024848,2]
[385865372,1758070231925,-132.79652434,0.000249,2]
[385865373,1758070231936,-4168.93645793,0.000249,2]
[385865374,1758070231947,-370.53545966,0.000249,2]
[385865375,1758070231959,-9959.09944635,0.000249,2]
[385865376,1758070231968,-195.45,0.00025676,2]
[385865377,1758070231978,-9999.99,0.00025786,2]
[385865378,1758070231987,-2396.62,0.00025786,2]
[385865379,1758070231996,-3527.6742668,0.00025786,2]
[385865446,1758070237587,-2708.10629572,0.00025786,2]
[385865447,1758070237799,-3764.20943748,0.00025786,2]
[385865448,1758070237809,-3515.5,0.00025786,2]
[385865449,1758070237818,-150.99,0.00025786,2]
[385865450,1758070237827,-999.99,0.00025786,2]
[385865451,1758070237836,-9999.99,0.00025786,2]
[385865452,1758070237846,-499.99,0.00025786,2]
[385865453,1758070237855,-9999.99,0.00025786,2]
[385865454,1758070237864,-160.0,0.00025815,2]
[385865455,1758070237874,-160.0,0.00025815,2]
[385865456,1758070237884,-213.1401216,0.00025833,2]
[385865457,1758070237895,-155.63,0.0002596,2]
[385865458,1758070237905,-1021.09,0.00026,2]
[385865459,1758070237914,-250.0,0.00026266,2]
[385865460,1758070237924,-195.45,0.00026505,2]
[385865461,1758070237933,-555.0,0.00027137,2]
[385865462,1758070237943,-1021.09,0.000273,2]
[385865463,1758070237953,-195.45,0.00027333,2]
[385865465,1758070237963,-515.95536276,0.00027371,2]
[385865467,1758070237972,-195.45,0.00028161,2]
[385865469,1758070237982,-150.0,0.00028482,2]
[385865471,1758070237991,-295.52,0.00028719,2]
[385865473,1758070238001,-4582.0842532,0.00028787,2]
[385865475,1758070238010,-195.45,0.00028989,2]
[385865476,1758070238020,-300.0,0.0002904,2]
[385865477,1758070238029,-156.69,0.00029067,30]
[385865478,1758070238039,-169.72,0.00029087,2]
[385865479,1758070238048,-200.0,0.00029198,2]
[385865480,1758070238058,-156.4138,0.00029249,2]
[385865481,1758070238068,-232.2243,0.00029249,2]
[385865482,1758070238077,-3021.3002,0.00029249,2]
[385865483,1758070238087,-10000.0,0.00029349,2]
[385865484,1758070238097,-195.45,0.00029818,2]
[385865485,1758070238107,-827.57,0.000301,2]
[385865486,1758070238116,-171.915,0.00030129,2]
[385865487,1758070238125,-151.0,0.00030137,2]
[385865488,1758070238135,-3000.0,0.00030137,2]
[385865489,1758070238144,-179.97025373,0.00030137,2]
[385865490,1758070238153,-1243.468,0.0003041,26]
[385865491,1758070238163,-190.59,0.00030576,2]
[385865492,1758070238172,-195.45,0.00030646,2]
[385865493,1758070238182,-155.0,0.00031,120]
[385865494,1758070238191,-527.252261,0.00031292,120]
[385865495,1758070238201,-558.72187295,0.00031457,2]
[385865496,1758070238210,-176.53201358,0.00031457,2]
[385865497,1758070238219,-27172.31,0.00031458,2]
[385865498,1758070238229,-195.45,0.00031474,2]
[385865499,1758070238238,-150.0,0.00031488,7]
[385865500,1758070238248,-250.0,0.00031551,2]
[385865501,1758070238263,-936.09,0.00031654,2]
[385865502,1758070238273,-461.97336837,0.00032096,2]
[385865503,1758070238283,-156.11368437,0.00032096,2]
[385865504,1758070238293,-150.0,0.00032124,2]
[385865505,1758070238303,-150.0,0.00032124,2]
[385865506,1758070238316,-200.0,0.00032124,2]
[385865507,1758070238332,-250.0,0.00032124,2]
[385865508,1758070238349,-295.52,0.00032143,2]
[385865509,1758070238358,-666.0,0.00032187,3]
[385865510,1758070238367,-755.0,0.00032196,2]
[385865511,1758070238377,-3390.0,0.00032196,2]
[385865512,1758070238387,-1260.0,0.00032196,2]
[385865513,1758070238396,-2039.0,0.00032196,2]
[385865514,1758070238406,-602.0,0.00032196,2]
[385865515,1758070238415,-1303.0,0.00032196,2]
[385865516,1758070238424,-1581.0,0.00032196,2]
[385865517,1758070238435,-568.0,0.00032196,2]
[385865518,1758070238445,-813.0,0.00032196,2]
[385865519,1758070238454,-18866.0,0.00032196,2]
[385865520,1758070238464,-1913.315,0.00032196,2]
[385865521,1758070238475,-726.0,0.00032196,2]
[385865522,1758070238486,-825.82,0.00032222,2]
[385865523,1758070238496,-29999.99,0.00032232,2]
[385865524,1758070238505,-19999.99,0.00032232,2]
[385865525,1758070238515,-2687.84,0.00032232,2]
[385865526,1758070238524,-502.63567981,0.00032298,27]
[385865527,1758070238535,-200.0,0.00032348,2]
[385865528,1758070238544,-156.11368437,0.00032376,2]
[385865529,1758070238554,-250.0,0.00032398,2]
[385865530,1758070238563,-150.0,0.00032398,2]
[385865531,1758070238572,-150.0,0.00032398,2]
[385865532,1758070238582,-500.0,0.00032398,2]
[385865533,1758070238592,-150.0,0.00032398,2]
[385865534,1758070238602,-500.0,0.00032398,2]
[385865535,1758070238612,-500.0,0.00032398,2]
[385865536,1758070238622,-500.0,0.00032398,2]
[385865537,1758070238631,-500.0,0.00032398,2]
[385865538,1758070238640,-150.0,0.00032398,2]